bitfinex-derivatives/quotes_SOLF0:USTF0_20241217
["timestamp","ask_amount","ask_price","bid_price","bid_amount"]
[1734425103403,2.2979,217.58,217.55,2.2981]
[1734425103801,1.6326,217.61,217.52,2.28]
[1734425104106,2.2981,217.56,217.53,9.46314553]
[1734425105003,2.2981,217.56,217.53,7.16484553]
[1734425105204,2.2981,217.56,217.54,2.2982]
[1734425105409,2.2979,217.58,217.54,2.2982]
[1734425105601,7.16484553,217.6,217.54,2.2982]
[1734425105904,0.71213243,217.59,217.53,2.2983]
[1734425107197,2.2981,217.56,217.53,2.2983]
[1734425107400,7.16484553,217.6,217.52,7.16484553]
[1734425107599,0.71213263,217.59,217.53,2.22]
[1734425108205,2.2982,217.55,217.53,2.22]
[1734425108404,7.16484553,217.58,217.53,2.22]
[1734425108608,0.71219237,217.57,217.53,2.22]
[1734425108809,7.16484553,217.58,217.53,2.22]
[1734425109104,2.2982,217.55,217.53,4.5184]
[1734425109302,8.79744553,217.61,217.54,7.16484553]
[1734425109499,1.6326,217.61,217.54,7.16484553]
[1734425109703,1.6326,217.61,217.56,2.298]
[1734425110310,2.2978,217.58,217.55,2.2981]
[1734425110609,1.6326,217.61,217.54,7.16484553]
[1734425110807,2.2978,217.59,217.56,2.298]
[1734425111310,2.2979,217.58,217.55,2.2981]
[1734425111807,1.6326,217.61,217.54,7.16484553]
[1734425112013,2.2978,217.59,217.56,2.298]
[1734425112602,2.2979,217.58,217.55,2.2981]
[1734425115911,2.2977,217.6,217.56,9.46284553]
[1734425116710,7.16484553,217.62,217.56,9.46284553]
[1734425116915,2.2978,217.59,217.56,9.46284553]
[1734425118408,7.16484553,217.62,217.56,9.46284553]
[1734425118609,7.16484553,217.62,217.56,7.16484553]
[1734425118814,7.16484553,217.62,217.56,9.46304553]
[1734425119214,2.2979,217.6,217.56,7.16484553]
[1734425119515,2.2979,217.6,217.57,2.2982]
[1734425120715,2.2979,217.6,217.56,2.2983]
[1734425121017,2.2979,217.6,217.56,9.46314553]
[1734425121414,2.298,217.59,217.56,9.46314553]
[1734425121812,2.66943,217.69,217.58,9.46284553]
[1734425122022,2.2977,217.62,217.58,11.68284553]
[1734425123019,2.2978,217.61,217.58,9.46284553]
[1734425123318,2.2978,217.61,217.59,2.22]
[1734425123512,2.298,217.59,217.54,1.6299]
[1734425123710,2.298,217.59,217.55,2.22]
[1734425124118,2.298,217.59,217.56,7.16484553]
[1734425124424,7.16484553,217.59,217.55,2.22]
[1734425124919,7.16484553,217.59,217.46,1.5286]
[1734425125121,7.16484553,217.59,217.51,7.16484553]
[1734425125311,7.16484553,217.59,217.52,2.22]
[1734425126112,9.46304553,217.57,217.52,2.22]
[1734425126322,7.16484553,217.57,217.5,7.16484553]
[1734425126524,7.16484553,217.57,217.51,2.22]
[1734425126721,2.2986,217.53,217.51,2.22]
[1734425128024,7.16484553,217.57,217.5,7.16484553]
[1734425128224,7.16484553,217.57,217.51,2.22]
[1734425128825,2.2986,217.53,217.51,2.22]
[1734425129218,7.16484553,217.55,217.48,7.16484553]
[1734425129420,7.16484553,217.53,217.48,7.16484553]
[1734425129622,7.16484553,217.53,217.48,9.38484553]
[1734425130218,2.2988,217.52,217.48,2.22]
[1734425130421,7.16484553,217.53,217.48,2.22]
[1734425131426,7.16484553,217.51,217.48,2.22]
[1734425131621,7.16484553,217.51,217.46,2.22]
[1734425132129,7.16484553,217.49,217.34,4.6542]
[1734425132324,7.16484553,217.47,217.4,7.16484553]
[1734425132525,7.16484553,217.47,217.41,2.22]
[1734425132926,7.16484553,217.45,217.41,2.22]
[1734425133327,7.16484553,217.45,217.39,7.16484553]
[1734425133529,7.16484553,217.45,217.39,9.38484553]
[1734425134030,2.2999,217.41,217.39,9.38484553]
[1734425135430,2.2999,217.41,217.39,7.16484553]
[1734425135630,2.2999,217.41,217.39,9.38484553]
[1734425136131,7.16484553,217.43,217.34,4.6542]
[1734425136329,7.16484553,217.41,217.35,2.22]
[1734425136532,7.16484553,217.39,217.32,5.6339488]
[1734425136735,2.3006,217.34,217.33,2.22]
[1734425139035,1.5878,217.44,217.33,2.22]
[1734425139230,0.71295439,217.43,217.34,7.16484553]
[1734425139435,7.16484553,217.41,217.36,7.16484553]
[1734425139735,2.3002,217.38,217.36,7.16484553]
[1734425140441,2.3003,217.37,217.36,7.16484553]
[1734425141236,2.3003,217.37,217.34,7.16484553]
[1734425141834,7.16484553,217.39,217.33,2.22]
[1734425144435,2.3005,217.36,217.33,2.22]
[1734425144935,2.3005,217.35,217.33,9.38484553]
[1734425145939,2.3004,217.37,217.33,9.38484553]
[1734425146139,2.3004,217.37,217.35,7.16484553]
[1734425146736,2.3004,217.37,217.33,9.38484553]
[1734425147944,7.16484553,217.39,217.35,7.16484553]
[1734425147945,2.3002,217.39,217.35,7.16484553]
[1734425148339,7.16484553,217.4,217.34,2.3005]
[1734425148639,2.3003,217.37,217.34,2.3005]
[1734425149235,7.16484553,217.38,217.33,2.22]
[1734425149939,7.16484553,217.38,217.31,7.16484553]
[1734425150136,7.16484553,217.36,217.31,9.38484553]
[1734425150642,7.16484553,217.34,217.27,1.5148]
[1734425150837,7.16484553,217.32,217.28,2.22]
[1734425151640,2.301,217.31,217.28,2.22]
[1734425152335,2.301,217.31,217.28,9.38484553]
[1734425152644,2.3011,217.3,217.28,7.16484553]
[1734425152850,7.16484553,217.33,217.28,2.22]
[1734425153143,7.16484553,217.31,217.24,2.3016]
[1734425153337,7.16484553,217.31,217.25,2.22]
[1734425153537,7.16484553,217.29,217.24,9.38484553]
[1734425154841,2.3014,217.27,217.24,9.38484553]
[1734425155540,7.16484553,217.29,217.24,9.38484553]
[1734425155742,1.5874,217.35,217.24,2.22]
[1734425156037,7.16484553,217.29,217.24,2.22]
[1734425156639,2.3015,217.26,217.24,2.22]
[1734425156840,1.5874,217.35,217.24,9.38484553]
[1734425157036,7.16484553,217.3,217.23,9.38484553]
[1734425158042,7.16484553,217.28,217.23,2.22]
[1734425160443,2.3015,217.26,217.23,2.22]
[1734425160645,1.5874,217.35,217.23,4.5217]
[1734425160846,7.16484553,217.31,217.24,7.16484553]
[1734425161041,2.3013,217.28,217.24,7.16484553]
[1734425161640,7.16484553,217.29,217.24,9.46644553]
[1734425162240,7.16484553,217.29,217.24,2.3016]
[1734425162447,2.3014,217.27,217.24,2.3016]
[1734425162942,9.46604553,217.29,217.25,2.3015]
[1734425163139,2.3012,217.29,217.25,2.3015]
[1734425163642,7.16484553,217.31,217.24,7.16484553]
[1734425163845,3.8074,217.35,217.26,7.16484553]
[1734425163846,7.16484553,217.32,217.26,7.16484553]
[1734425164041,7.16484553,217.34,217.26,7.16484553]
[1734425164236,1.5874,217.35,217.26,7.16484553]
[1734425164543,2.3009,217.32,217.28,2.3012]
[1734425164737,7.16484553,217.34,217.29,2.18]
[1734425164937,7.16484553,217.32,217.29,2.18]
[1734425166146,2.301,217.31,217.29,2.18]
[1734425166546,7.16484553,217.32,217.26,9.46624553]
[1734425166741,7.16484553,217.32,217.27,2.18]
[1734425166942,7.16484553,217.28,217.24,1.5173]
[1734425167139,7.16484553,217.28,217.24,2.18]
[1734425167846,7.16484553,217.3,217.24,9.34484553]
[1734425168042,7.16484553,217.3,217.24,2.18]
[1734425168541,2.3013,217.28,217.24,11.64644553]
[1734425168942,2.3009,217.32,217.27,2.3013]
[1734425169144,2.3009,217.32,217.27,9.46614553]
[1734425171747,2.3009,217.32,217.28,2.3012]
[1734425171945,2.3006,217.34,217.29,9.34484553]
[1734425172139,2.3006,217.34,217.3,2.18]
[1734425172346,2.3006,217.34,217.3,4.4809]
[1734425172948,2.3006,217.34,217.31,9.46574553]
[1734425173149,2.3005,217.35,217.31,9.46574553]
[1734425173954,2.3004,217.36,217.32,2.3007]
[1734425174148,2.3004,217.36,217.31,7.16484553]
[1734425174349,1.4894,217.42,217.33,7.16484553]
[1734425174547,7.16484553,217.44,217.37,7.16484553]
[1734425174750,7.16484553,217.44,217.38,2.18]
[1734425175147,7.16484553,217.42,217.31,4.7291]
[1734425175353,7.16484553,217.4,217.34,7.16484553]
[1734425175855,7.16484553,217.4,217.35,2.18]
[1734425176249,2.3001,217.39,217.35,4.4805]
[1734425176954,1.6426,217.47,217.37,2.3003]
[1734425177249,7.16484553,217.42,217.36,7.16484553]
[1734425177457,7.16484553,217.42,217.35,2.18]
[1734425177753,2.3001,217.4,217.36,2.3004]
[1734425177950,7.16484553,217.42,217.35,2.18]
[1734425178154,7.16484553,217.4,217.35,2.18]
[1734425178357,7.16484553,217.38,217.34,2.18]
[1734425178558,9.46504553,217.38,217.34,2.18]
[1734425178751,7.16484553,217.4,217.34,2.18]
[1734425179255,2.3002,217.39,217.34,4.4806]
[1734425179557,7.16484553,217.4,217.34,4.4806]
[1734425180056,2.3002,217.38,217.35,2.3005]
[1734425180255,2.3002,217.38,217.34,2.18]
[1734425181549,2.3002,217.38,217.34,4.4806]
[1734425182147,7.16484553,217.38,217.09,20.7198]
[1734425182353,2.18,217.43,217.09,20.7198]
[1734425182354,7.16484553,217.35,217.29,7.16484553]
[1734425182655,10.02182799,217.45,217.03,4.602]
[1734425182656,7.16484553,217.31,217.04,52.62]
[1734425182859,2.3013,217.27,217.22,9.46664553]
[1734425183054,2.3013,217.27,217.22,15.0859217]
[1734425183261,9.46614553,217.28,217.23,2.3018]
[1734425184457,9.46614553,217.28,217.24,2.3016]
[1734425184656,9.46614553,217.28,217.22,12.7841217]
[1734425185161,9.46614553,217.28,217.23,2.3018]
[1734425185757,7.16484553,217.28,217.22,9.34484553]
[1734425186061,2.3015,217.26,217.22,9.46674553]
[1734425186459,2.3015,217.26,217.22,7.16484553]
[1734425186658,2.3014,217.27,217.22,7.16484553]
[1734425186854,7.16484553,217.3,217.24,7.16484553]
[1734425187059,7.16484553,217.3,217.24,9.46654553]
[1734425187260,7.16484553,217.3,217.23,7.16484553]
[1734425187261,2.3013,217.28,217.23,7.16484553]
[1734425187655,2.3013,217.28,217.24,2.3016]
[1734425188556,1.6224,217.41,217.27,7.16484553]
[1734425188762,4.45958875,217.4,217.3,7.16484553]
[1734425188963,2.3005,217.36,217.32,2.3008]
[1734425189352,7.16484553,217.38,217.3,7.16484553]
[1734425190556,7.16484553,217.34,217.28,7.16484553]
[1734425190761,7.16484553,217.36,217.3,7.16484553]
[1734425191855,1.5966,217.38,217.3,7.16484553]
[1734425192056,7.16484553,217.38,217.3,7.16484553]
[1734425192762,2.3004,217.37,217.33,2.3007]
[1734425192962,7.16484553,217.38,217.32,7.16484553]
[1734425193155,7.16484553,217.38,217.32,9.34484553]
[1734425194565,9.46504553,217.38,217.34,2.3005]
[1734425194763,8.73134553,217.4,217.32,9.34484553]
[1734425194959,8.73134553,217.4,217.34,7.16484553]
[1734425195159,2.3001,217.39,217.35,2.3004]
[1734425198269,3.1426,217.47,217.36,7.16484553]
[1734425198469,7.16484553,217.42,217.36,7.16484553]
[1734425199069,7.16484553,217.4,217.33,1.5767]
[1734425199272,7.16484553,217.36,217.32,2.18]
[1734425199471,7.16484553,217.36,217.3,7.16484553]
[1734425199667,7.16484553,217.36,217.32,2.3008]
[1734425200170,2.3004,217.37,217.33,2.3006]
[1734425200367,9.46504553,217.38,217.32,7.16484553]
[1734425201071,7.16484553,217.38,217.33,2.3007]
[1734425201276,2.3004,217.37,217.32,5.45323304]
[1734425201473,7.16484553,217.38,217.32,12.61807857]
[1734425201975,9.46504553,217.38,217.34,2.3006]
[1734425203081,9.46504553,217.38,217.32,12.61807857]
[1734425203474,1.6384,217.41,217.34,7.16484553]
[1734425203680,7.16484553,217.42,217.36,7.16484553]
[1734425203976,7.16484553,217.42,217.36,9.34484553]
[1734425204379,7.16484553,217.42,217.37,2.3002]
[1734425205081,2.2999,217.41,217.37,2.3002]
[1734425205781,2.2999,217.41,217.36,9.34484553]
[1734425205980,2.2999,217.41,217.38,2.3002]
[1734425206579,7.16484553,217.42,217.39,2.3]
[1734425208481,9.46464553,217.42,217.39,2.3]
[1734425212881,2.2999,217.41,217.39,2.3]
[1734425213082,2.2999,217.41,217.36,9.34484553]
[1734425213283,2.2999,217.41,217.38,2.3002]
[1734425214294,2.3002,217.38,217.35,2.3005]
[1734425214694,7.16484553,217.4,217.35,2.3005]
[1734425214891,2.3001,217.39,217.35,2.3005]
[1734425215099,2.3001,217.39,217.36,2.3004]
[1734425215291,5.4642857,217.46,217.36,7.16484553]
[1734425215492,2.2998,217.42,217.38,2.3002]
[1734425215896,7.16484553,217.41,217.38,2.3002]
[1734425216199,7.16484553,217.43,217.36,7.16484553]
[1734425216790,7.16484553,217.43,217.38,2.3002]
[1734425216791,2.2998,217.42,217.38,2.3002]
[1734425217397,2.2998,217.42,217.39,2.3001]
[1734425217691,255.6195622,217.56,217.4,7.16484553]
[1734425217895,0.71268637,217.49,217.46,2.2993]
[1734425218093,8.71514553,217.5,217.46,2.2993]
[1734425218094,11.01404553,217.5,217.46,2.2993]
[1734425218696,0.24129,217.53,217.46,7.16484553]
[1734425218994,0.7125635,217.52,217.48,7.16484553]
[1734425219195,0.24129,217.53,217.5,2.2989]
[1734425219792,2.53989,217.53,217.48,11.64384553]
[1734425220394,0.24129,217.53,217.5,2.2989]
[1734425220999,0.24129,217.53,217.49,2.299]
[1734425221503,0.24129,217.53,217.5,2.2989]
[1734425221897,0.24129,217.53,217.5,7.16484553]
[1734425222200,0.24129,217.53,217.52,2.2987]
[1734425222799,0.24129,217.53,217.52,9.46354553]
[1734425222998,0.24129,217.53,217.5,7.16484553]
[1734425223305,0.24129,217.53,217.5,4.4788]
[1734425223701,0.24129,217.53,217.5,2.18]
[1734425223898,0.24129,217.53,217.51,2.2988]
[1734425224699,0.24129,217.53,217.5,11.64374553]
[1734425224900,0.24129,217.53,217.5,2.18]
[1734425225096,2.53989,217.53,217.5,2.18]
[1734425226000,0.24129,217.53,217.5,2.18]
[1734425226202,0.24129,217.53,217.51,2.2988]
[1734425226399,0.24129,217.53,217.52,7.16484553]
[1734425226908,0.24129,217.53,217.52,9.46354553]
[1734425229302,0.24129,217.53,217.52,2.2987]
[1734425229605,0.24129,217.53,217.49,1.6125]
[1734425229606,0.24129,217.53,217.49,7.16484553]
[1734425229804,0.24129,217.53,217.5,2.18]
[1734425230405,0.24129,217.53,217.5,4.4789]
[1734425230901,0.24129,217.53,217.48,2.2991]
[1734425230902,9.70483553,217.53,217.48,2.2991]
[1734425231096,9.70483553,217.53,217.49,2.18]
[1734425232302,9.70483553,217.53,217.49,4.479]
[1734425232501,0.24129,217.53,217.49,4.479]
[1734425232699,0.24129,217.53,217.49,9.34484553]
[1734425232904,0.24129,217.53,217.5,2.2988]
[1734425233211,0.24129,217.53,217.49,9.34484553]
[1734425233602,0.24129,217.53,217.5,2.2988]
[1734425233811,0.24129,217.53,217.49,9.34484553]
[1734425234308,0.24129,217.53,217.51,2.2988]
[1734425235308,0.24129,217.53,217.49,9.34484553]
[1734425235612,0.24129,217.53,217.52,2.2987]
[1734425236705,0.24129,217.53,217.49,9.34484553]
[1734425236906,2.2984,217.55,217.51,2.2988]
[1734425238510,7.16484553,217.57,217.49,9.34484553]
[1734425238711,2.2983,217.56,217.52,2.2987]
[1734425238907,1.5189,217.63,217.53,7.16484553]
[1734425239115,7.87709321,217.62,217.55,7.16484553]
[1734425239313,2.2978,217.61,217.56,2.2982]
[1734425239510,2.2978,217.61,217.55,7.16484553]
[1734425240012,2.2978,217.61,217.57,2.2981]
[1734425241009,2.2978,217.61,217.55,7.16484553]
[1734425241208,0.41627,217.64,217.59,7.16484553]
[1734425241415,0.41627,217.64,217.6,2.18]
[1734425242512,0.41627,217.64,217.61,7.16484553]
[1734425243111,0.41627,217.64,217.62,2.2976]
[1734425243516,0.41627,217.64,217.61,7.16484553]
[1734425243811,0.41627,217.64,217.62,2.2976]
[1734425244015,0.41627,217.64,217.61,7.16484553]
[1734425244418,0.41627,217.64,217.6,2.18]
[1734425245017,2.2976,217.63,217.6,2.18]
[1734425246921,2.2977,217.62,217.6,2.18]
[1734425247118,0.41627,217.64,217.57,11.64294553]
[1734425247119,7.16484553,217.63,217.57,11.64294553]
[1734425248621,2.2978,217.61,217.57,11.64294553]
[1734425248814,0.41627,217.64,217.57,9.34484553]
[1734425248815,7.58111553,217.64,217.57,9.34484553]
[1734425249022,2.2977,217.62,217.58,2.298]
[1734425249216,7.58111553,217.64,217.58,2.298]
[1734425249921,2.2977,217.62,217.58,2.298]
[1734425251222,7.16484553,217.62,217.57,2.18]
[1734425251417,7.16484553,217.62,217.54,7.16484553]
[1734425251619,7.16484553,217.6,217.54,7.16484553]
[1734425251826,7.16484553,217.58,217.53,2.18]
[1734425252027,7.16484553,217.58,217.51,7.16484553]
[1734425252416,2.2983,217.56,217.51,9.46364553]
[1734425252720,0.71228329,217.55,217.51,2.2988]
[1734425252918,0.71228329,217.55,217.5,9.34484553]
[1734425253126,0.71228329,217.55,217.5,7.16484553]
[1734425253423,3.0109256,217.54,217.5,9.46374553]
[1734425253623,2.2986,217.54,217.5,9.46374553]
[1734425254521,2.2986,217.54,217.5,2.2989]
[1734425255319,2.2986,217.54,217.5,9.46374553]
[1734425255519,2.2986,217.54,217.49,2.18]
[1734425255520,2.2987,217.53,217.49,2.18]
[1734425255822,7.16484553,217.56,217.49,9.34484553]
[1734425256016,0.71232988,217.55,217.49,9.34484553]
[1734425256424,2.2986,217.53,217.49,9.34484553]
[1734425257318,7.16484553,217.54,217.49,2.18]
[1734425257524,7.16484553,217.52,217.47,2.18]
[1734425257719,0.71237793,217.51,217.46,7.16484553]
[1734425257920,2.299,217.5,217.46,9.46414553]
[1734425258121,7.16484553,217.52,217.46,9.34484553]
[1734425258322,0.7124098,217.51,217.46,9.34484553]
[1734425258819,0.71241316,217.5,217.44,7.16484553]
[1734425259022,7.16484553,217.5,217.44,9.34484553]
[1734425259226,7.16484553,217.48,217.42,2.18]
[1734425259421,0.71254501,217.47,217.41,9.34484553]
[1734425259628,0.71254501,217.47,217.41,7.16484553]
[1734425260228,2.2995,217.45,217.41,7.16484553]
[1734425260729,7.16484553,217.46,217.41,7.16484553]
[1734425261521,2.2995,217.45,217.41,7.16484553]
[1734425262120,1.5176,217.5,217.43,7.16484553]
[1734425262322,7.16484553,217.49,217.43,7.16484553]
[1734425263528,2.2994,217.46,217.42,2.2998]
[1734425263830,1.5176,217.5,217.42,7.16484553]
[1734425264032,1.5176,217.5,217.44,7.16484553]
[1734425264226,1.5176,217.5,217.44,9.46434553]
[1734425265332,7.16484553,217.49,217.42,9.46454553]
[1734425266229,2.2992,217.47,217.42,9.46454553]
[1734425267235,7.16484553,217.49,217.42,9.46454553]
[1734425267436,2.2994,217.46,217.43,7.16484553]
[1734425267736,7.16484553,217.47,217.4,2.18]
[1734425267933,2.2997,217.43,217.4,9.34484553]
[1734425268636,2.2999,217.41,217.38,7.16484553]
[1734425269234,2.18,217.49,217.37,4.4803]
[1734425269235,7.16484553,217.43,217.37,2.18]
[1734425269435,2.18,217.49,217.35,2.3005]
[1734425269436,2.3001,217.39,217.35,2.3005]
[1734425269644,2.3001,217.39,217.35,11.64534553]
[1734425271141,2.3,217.4,217.36,2.3004]
[1734425271341,2.3,217.4,217.35,9.34484553]
[1734425271938,7.16484553,217.41,217.35,9.34484553]
[1734425273242,7.16484553,217.41,217.35,11.64534553]
[1734425274441,2.3002,217.39,217.35,11.64534553]
[1734425274836,7.16484553,217.41,217.35,9.34484553]
[1734425275138,7.16484553,217.43,217.37,7.16484553]
[1734425275639,2.2998,217.42,217.37,7.16484553]
[1734425275844,7.16484553,217.43,217.37,7.16484553]
[1734425276248,3.1547,217.5,217.39,9.46494553]
[1734425276438,7.16484553,217.46,217.39,7.16484553]
[1734425276744,2.2996,217.44,217.4,2.2999]
[1734425277245,7.16484553,217.46,217.4,2.2999]
[1734425277644,2.2997,217.43,217.39,2.3001]
[1734425277946,7.16484553,217.44,217.39,2.3001]
[1734425278440,7.16484553,217.42,217.35,9.34484553]
[1734425278647,7.16484553,217.42,217.35,7.16484553]
[1734425278843,2.3001,217.39,217.35,9.46524553]
[1734425279347,2.3001,217.39,217.36,2.3004]
[1734425280347,2.3001,217.39,217.35,7.16484553]
[1734425280542,7.16484553,217.4,217.28,1.6047]
[1734425280745,7.16484553,217.36,217.3,7.16484553]
[1734425281244,7.16484553,217.36,217.3,9.34484553]
[1734425281448,2.3007,217.34,217.3,11.64574553]
[1734425281648,2.3007,217.34,217.3,9.34484553]
[1734425282043,2.3007,217.34,217.3,11.64584553]
[1734425282339,2.3007,217.33,217.3,2.18]
[1734425282545,7.16484553,217.34,217.29,7.16484553]
[1734425282938,7.16484553,217.34,217.28,3.7847]
[1734425283548,2.3008,217.32,217.29,2.3011]
[1734425283845,2.3008,217.32,217.28,1.6047]
[1734425284043,7.16484553,217.34,217.28,1.6047]
[1734425284044,2.3007,217.33,217.29,9.46594553]
[1734425284844,2.3008,217.32,217.28,1.6047]
[1734425285045,2.3008,217.32,217.28,3.9059]
[1734425285251,7.16484553,217.32,217.25,2.18]
[1734425285443,7.16484553,217.32,217.25,9.34484553]
[1734425285749,2.3013,217.28,217.25,2.18]
[1734425286650,2.3012,217.29,217.25,4.4815]
[1734425287850,2.301,217.31,217.26,9.46624553]
[1734425288054,2.301,217.31,217.26,7.16484553]
[1734425289153,2.301,217.3,217.26,9.46624553]
[1734425289551,2.18,217.39,217.28,7.16484553]
[1734425289751,2.18,217.39,217.3,7.16484553]
[1734425290052,7.16484553,217.39,217.32,7.16484553]
[1734425290252,7.16484553,217.39,217.32,9.34484553]
[1734425290654,7.16484553,217.41,217.34,7.16484553]
[1734425291154,7.16484553,217.39,217.34,7.16484553]
[1734425291650,7.16484553,217.39,217.34,9.46534553]
[1734425291651,9.46494553,217.39,217.34,9.46534553]
[1734425292058,7.16484553,217.39,217.34,7.16484553]
[1734425292257,2.3003,217.38,217.33,2.3007]
[1734425292454,2.3003,217.38,217.32,9.34484553]
[1734425292652,7.16484553,217.39,217.32,9.34484553]
[1734425292852,9.46494553,217.39,217.34,2.3005]
[1734425294752,2.3002,217.38,217.34,2.3005]
[1734425295155,7.16484553,217.35,217.32,2.18]
[1734425295355,2.3007,217.33,217.28,7.16484553]
[1734425295559,9.46554553,217.33,217.28,9.34484553]
[1734425295856,7.16484553,217.33,217.29,2.301]
[1734425296254,2.3006,217.34,217.29,2.301]
[1734425296456,2.3006,217.34,217.28,9.34484553]
[1734425296457,2.3006,217.34,217.3,2.301]
[1734425298363,2.3003,217.37,217.32,2.3007]
[1734425298557,7.16484553,217.38,217.3,7.16484553]
[1734425298860,2.18,217.39,217.3,7.16484553]
[1734425298861,7.16484553,217.36,217.3,7.16484553]
[1734425299562,7.16484553,217.38,217.3,7.16484553]
[1734425299757,7.16484553,217.38,217.28,2.18]
[1734425299758,7.16484553,217.38,217.32,7.16484553]
[1734425300163,7.16484553,217.38,217.33,2.18]
[1734425301765,7.16484553,217.4,217.33,2.18]
[1734425301955,7.16484553,217.36,217.29,3.1538]
[1734425302159,2.3008,217.33,217.3,4.81855554]
[1734425302359,2.3008,217.33,217.29,5.994]
[1734425302963,2.3008,217.33,217.29,2.3011]
[1734425303160,9.46564553,217.32,217.28,2.18]
[1734425303464,9.46564553,217.32,217.28,4.4812]
[1734425304365,7.16484553,217.32,217.28,4.4812]
[1734425304566,2.3009,217.31,217.28,4.4812]
[1734425304862,7.16484553,217.32,217.26,2.3014]
[1734425305071,7.16484553,217.32,217.26,4.4814]
[1734425305470,7.16484553,217.3,217.26,2.18]
[1734425305666,2.3011,217.29,217.25,4.4815]
[1734425306168,9.46594553,217.3,217.26,4.82712333]
[1734425306369,9.46594553,217.3,217.25,4.4815]
[1734425306764,9.46594553,217.3,217.26,4.82700157]
[1734425306967,9.46594553,217.3,217.25,4.4815]
[1734425307168,9.46594553,217.3,217.26,4.82667541]
[1734425307473,9.46594553,217.3,217.25,4.4815]
[1734425307474,2.3011,217.3,217.25,4.4815]
[1734425307666,7.16484553,217.32,217.26,4.82703059]
[1734425307866,7.16484553,217.34,217.28,2.3012]
[1734425308069,7.16484553,217.32,217.25,2.18]
[1734425308269,7.16484553,217.32,217.25,9.34484553]
[1734425308468,2.3012,217.29,217.25,9.34484553]
[1734425308772,2.3012,217.29,217.26,4.82640466]
[1734425308974,2.3012,217.29,217.25,9.34484553]
[1734425309275,2.301,217.3,217.25,9.34484553]
[1734425309574,2.301,217.3,217.26,4.82776636]
[1734425309872,2.301,217.3,217.26,2.3014]
[1734425310071,2.3012,217.29,217.26,2.3014]
[1734425311474,2.3012,217.29,217.25,4.4816]
[1734425311664,2.3012,217.29,217.26,4.82999644]
[1734425311869,2.3012,217.29,217.25,4.4816]
[1734425312069,2.3012,217.29,217.26,4.82982264]
[1734425312373,2.3012,217.29,217.25,4.4816]
[1734425312776,2.3012,217.29,217.26,4.83028583]
[1734425312979,2.3012,217.29,217.25,4.4816]
[1734425313273,2.3012,217.29,217.26,4.82976551]
[1734425313478,2.3012,217.29,217.25,4.4816]
[1734425313675,2.3012,217.29,217.26,4.83070937]
[1734425313875,2.3012,217.29,217.25,4.4816]
[1734425314072,2.3012,217.29,217.26,4.8303825]
[1734425314268,2.3012,217.29,217.25,4.4816]
[1734425314476,2.3012,217.29,217.26,4.83094594]
[1734425314771,2.3012,217.29,217.25,4.4816]
[1734425315075,2.3013,217.28,217.26,4.83127761]
[1734425315278,2.3013,217.28,217.24,4.4816]
[1734425315473,2.3013,217.28,217.25,4.83158688]
[1734425315776,2.3013,217.28,217.26,4.83158688]
[1734425315975,2.3013,217.28,217.24,4.4816]
[1734425316166,2.3015,217.26,217.25,4.83313522]
[1734425316865,7.16484553,217.28,217.22,2.18]
[1734425317070,2.3016,217.25,217.22,2.18]
[1734425317473,2.3016,217.25,217.23,4.83476145]
[1734425317667,2.3016,217.25,217.21,2.302]
[1734425317865,2.3017,217.24,217.22,4.8348506]
[1734425318071,2.3017,217.24,217.21,2.18]
[1734425318969,2.3017,217.24,217.2,9.46694553]
[1734425319168,2.3017,217.24,217.21,4.83462436]
[1734425319373,2.3017,217.24,217.2,9.46694553]
[1734425321469,2.3017,217.24,217.2,11.64694553]
[1734425322076,2.3017,217.24,217.2,4.4821]
[1734425322673,7.16484553,217.24,217.16,1.6372]
[1734425322877,7.16484553,217.22,217.17,7.01037219]
[1734425323080,7.16484553,217.22,217.17,2.18]
[1734425324076,2.3022,217.19,217.16,2.3024]
[1734425324278,2.3022,217.19,217.16,4.4824]
[1734425325476,2.3021,217.2,217.16,4.4824]
[1734425325981,3.7789,217.27,217.18,2.3023]